bitfinex/quotes_SOLUSD_20241028
["timestamp","ask_amount","ask_price","bid_price","bid_amount"]
[1730156950460,10.78813956,179.1,179.06,20.0]
[1730156950659,21.6638,179.16,178.99,15.55048746]
[1730156950660,10.78813956,179.11,179.05,10.78813956]
[1730156951048,21.6638,179.16,179.02,20.1]
[1730156951247,21.6638,179.16,179.12,10.78813956]
[1730156951448,16.0822,179.16,179.13,3.76969798]
[1730156951660,16.0822,179.16,179.13,10.78813956]
[1730156951866,7.185265,179.17,179.05,0.1]
[1730156951867,7.185265,179.17,179.14,10.78813956]
[1730156952161,0.610765,179.17,179.14,10.78813956]
[1730156952537,0.610765,179.17,179.16,10.78813956]
[1730156953470,0.610765,179.17,179.15,10.78813956]
[1730156955151,0.610765,179.17,179.07,11.5772]
[1730156955457,0.610765,179.17,179.13,10.78813956]
[1730156955652,0.610765,179.17,179.14,10.78813956]
[1730156958167,0.610765,179.17,179.15,10.78813956]
[1730156958750,0.610765,179.17,179.14,10.78813956]
[1730156958945,0.610765,179.17,179.08,20.0]
[1730156958946,0.610765,179.17,179.13,10.78813956]
[1730156959140,0.610765,179.17,179.16,10.78813956]
[1730156961490,0.610765,179.17,179.16,30.78813956]
[1730156968271,0.610765,179.17,179.16,73.9406978]
[1730156968467,0.610765,179.17,179.16,30.78813956]
[1730156970052,6.3758,179.27,179.17,20.0]
[1730156970252,6.3758,179.27,179.24,10.78813956]
[1730156970459,6.3758,179.27,179.23,10.78813956]
[1730156971363,6.3758,179.27,179.24,10.78813956]
[1730156972478,6.3758,179.27,179.23,10.78813956]
[1730156975675,5.82276062,179.3,179.26,10.78813956]
[1730156975880,0.610765,179.35,179.31,6.3615]
[1730156976084,2.91600527,179.51,179.31,6.3615]
[1730156976085,0.1,179.5,179.33,0.1]
[1730156976296,10.78813956,179.44,179.32,20.0]
[1730156976474,16.36133956,179.43,179.37,10.78813956]
[1730156976676,5.5732,179.43,179.38,10.78813956]
[1730156977796,23.776884,179.42,179.38,10.78813956]
[1730156977996,5.5727,179.45,179.39,10.78813956]
[1730156978171,10.78813956,179.44,179.38,10.78813956]
[1730156978595,16.79423704,179.44,179.38,16.79423704]
[1730156978963,16.79423704,179.43,179.38,16.79423704]
[1730156979195,5.5727,179.45,179.38,16.79423704]
[1730156979395,40.57112104,179.44,179.38,16.79423704]
[1730156979687,16.79423704,179.41,179.35,16.79423704]
[1730156979898,16.79423704,179.41,179.36,20.0]
[1730156980077,16.79423704,179.41,179.36,36.79423704]
[1730156980689,16.79423704,179.42,179.36,36.79423704]
[1730156980889,16.79423704,179.4,179.34,16.79423704]
[1730156981070,16.79423704,179.42,179.36,16.79423704]
[1730156981693,16.79423704,179.37,179.27,11.5772]
[1730156981890,16.79423704,179.37,179.32,16.79423704]
[1730156982087,16.79423704,179.38,179.32,16.79423704]
[1730156982309,16.79423704,179.37,179.32,16.79423704]
[1730156982485,16.79423704,179.37,179.33,2.1183129]
[1730156982691,16.79423704,179.38,179.32,16.79423704]
[1730156983085,22.36893704,179.38,179.32,16.79423704]
[1730156983507,40.57112104,179.34,179.25,6.3427]
[1730156983807,16.79423704,179.31,179.26,16.79423704]
[1730156984004,16.79423704,179.28,179.23,16.79423704]
[1730156984379,16.79423704,179.29,179.23,16.79423704]
[1730156984593,16.79423704,179.29,179.24,16.79423704]
[1730156985414,16.79423704,179.3,179.24,16.79423704]
[1730156985596,16.79423704,179.32,179.27,16.79423704]
[1730156985782,16.79423704,179.31,179.26,16.79423704]
[1730156986108,16.79423704,179.31,179.25,16.79423704]
[1730156986606,16.79423704,179.3,179.25,16.79423704]
[1730156987104,16.79423704,179.29,179.24,16.79423704]
[1730156987308,16.79423704,179.29,179.25,20.0]
[1730156987995,16.79423704,179.3,179.25,16.79423704]
[1730156988204,16.79423704,179.32,179.26,36.79423704]
[1730156988511,16.79423704,179.31,179.27,20.0]
[1730156988709,16.79423704,179.3,179.27,20.0]
[1730156989213,16.79423704,179.31,179.26,16.79423704]
[1730156989409,16.79423704,179.32,179.27,16.79423704]
[1730156989588,16.79423704,179.33,179.28,16.79423704]
[1730156990484,16.79423704,179.32,179.27,20.0]
[1730156991201,16.79423704,179.32,179.27,16.79423704]
[1730156991407,16.79423704,179.33,179.28,16.79423704]
[1730156991785,22.37053704,179.33,179.28,16.79423704]
[1730156992111,16.79423704,179.33,179.28,16.79423704]
[1730156992498,16.79423704,179.32,179.27,16.79423704]
[1730156993617,16.79423704,179.33,179.27,16.79423704]
[1730156994117,16.79423704,179.3,179.26,20.0]
[1730156994419,23.776884,179.33,179.22,16.79423704]
[1730156994420,16.79423704,179.28,179.22,16.79423704]
[1730156994712,23.776884,179.28,179.24,16.79423704]
[1730156994918,16.79423704,179.28,179.23,16.79423704]
[1730156995102,16.79423704,179.29,179.24,16.79423704]
[1730156995416,16.79423704,179.28,179.23,16.79423704]
[1730156995916,16.79423704,179.28,179.24,20.0]
[1730156996114,16.79423704,179.28,179.22,16.79423704]
[1730156996417,16.79423704,179.25,179.2,16.79423704]
[1730156997188,16.79423704,179.23,179.18,16.79423704]
[1730156997500,16.79423704,179.22,179.17,16.79423704]
[1730156998828,16.79423704,179.2,179.15,16.79423704]
[1730156999004,16.79423704,179.21,179.15,16.79423704]
[1730156999210,16.79423704,179.19,179.13,16.79423704]
[1730156999408,16.79423704,179.18,179.13,16.79423704]
[1730157000110,16.79423704,179.17,179.12,16.79423704]
[1730157000338,16.79423704,179.18,179.12,16.79423704]
[1730157000509,16.79423704,179.18,179.13,16.79423704]
[1730157000895,16.79423704,179.18,179.14,20.0]
[1730157001346,12.38919265,179.25,179.08,10.13864785]
[1730157001347,16.79423704,179.15,179.09,16.79423704]
[1730157001498,16.79423704,179.14,179.08,16.79423704]
[1730157001696,16.79423704,179.14,179.09,16.79423704]
[1730157001897,16.79423704,179.16,179.11,16.79423704]
[1730157002126,16.79423704,179.16,179.1,16.79423704]
[1730157002310,16.79423704,179.15,179.1,16.79423704]
[1730157002507,16.79423704,179.18,179.12,16.79423704]
[1730157002922,16.79423704,179.17,179.11,16.79423704]
[1730157003298,16.79423704,179.16,179.11,16.79423704]
[1730157003504,16.79423704,179.18,179.13,20.0]
[1730157003812,16.79423704,179.18,179.13,36.79423704]
[1730157006027,32.15413704,179.19,179.14,16.79423704]
[1730157006194,16.79423704,179.18,179.13,16.79423704]
[1730157006394,32.15413704,179.19,179.13,16.79423704]
[1730157006635,32.15413704,179.19,179.14,16.79423704]
[1730157007007,32.15413704,179.19,179.13,16.79423704]
[1730157009114,32.15413704,179.19,179.13,16.79423704]
[1730157009719,15.3599,179.19,179.15,16.79423704]
[1730157010244,15.3599,179.19,179.16,16.79423704]
[1730157010823,16.79423704,179.22,179.16,16.79423704]
[1730157011011,16.2403,179.23,179.18,16.79423704]
[1730157011012,33.03453704,179.23,179.18,16.79423704]
[1730157011214,16.2403,179.23,179.19,16.79423704]
[1730157011742,33.03453704,179.23,179.18,16.79423704]
[1730157012721,16.79423704,179.21,179.16,16.79423704]
[1730157012922,16.79423704,179.2,179.16,20.0]
[1730157013232,16.79423704,179.18,179.14,20.0]
[1730157013444,16.79423704,179.17,179.14,20.0]
[1730157014034,16.79423704,179.17,179.13,20.0]
[1730157016336,16.79423704,179.18,179.13,16.79423704]
[1730157016530,16.79423704,179.18,179.14,20.0]
[1730157016926,16.79423704,179.17,179.14,20.0]
[1730157017120,16.79423704,179.17,179.13,20.0]
[1730157018127,16.79423704,179.16,179.12,20.0]
[1730157018452,16.79423704,179.17,179.12,36.79423704]
[1730157018940,16.79423704,179.17,179.12,16.79423704]
[1730157019717,16.79423704,179.18,179.13,16.79423704]
[1730157019918,16.79423704,179.21,179.16,16.79423704]
[1730157020214,38.84874683,179.23,179.18,16.79423704]
[1730157020413,16.2403,179.23,179.19,16.79423704]
[1730157020635,38.61403704,179.23,179.18,16.79423704]
[1730157020847,33.03453704,179.23,179.18,16.79423704]
[1730157021015,16.2403,179.23,179.21,16.79423704]
[1730157021216,16.2057,179.28,179.22,16.79423704]
[1730157021539,38.57783704,179.28,179.23,16.79423704]
[1730157022125,16.79423704,179.25,179.2,16.79423704]
[1730157022437,16.79423704,179.25,179.12,3.61364237]
[1730157022438,16.79423704,179.23,179.18,16.79423704]
[1730157022639,16.79423704,179.24,179.18,16.79423704]
[1730157022822,23.776884,179.23,179.18,16.79423704]
[1730157023349,46.15062104,179.23,179.18,16.79423704]
[1730157023938,40.57112104,179.23,179.18,16.79423704]
[1730157024149,16.79423704,179.22,179.17,16.79423704]
[1730157024345,23.776884,179.21,179.15,16.79423704]
[1730157024646,16.79423704,179.19,179.14,16.79423704]
[1730157024815,16.79423704,179.19,179.13,16.79423704]
[1730157025029,23.776884,179.18,179.13,16.79423704]
[1730157025325,16.79423704,179.17,179.12,16.79423704]
[1730157025725,16.79423704,179.16,179.11,16.79423704]
[1730157026132,16.79423704,179.13,179.07,3.61437561]
[1730157026367,16.79423704,179.13,179.08,16.79423704]
[1730157026537,16.79423704,179.14,179.08,16.79423704]
[1730157026942,23.776884,179.13,179.08,16.79423704]
[1730157028825,23.776884,179.13,179.09,16.79423704]
[1730157029030,23.776884,179.14,179.09,16.79423704]
[1730157029340,16.79423704,179.18,179.13,16.79423704]
[1730157029647,16.79423704,179.18,179.03,11.6772]
[1730157029648,21.0607,179.2,179.15,16.79423704]
[1730157029834,37.85493704,179.2,179.15,16.79423704]
[1730157030153,37.85493704,179.2,179.14,16.79423704]
[1730157031357,16.79423704,179.19,179.13,16.79423704]
[1730157031552,16.79423704,179.18,179.13,16.79423704]
[1730157032058,6.6529,179.21,179.17,16.79423704]
[1730157032245,15.6076,179.24,179.2,16.79423704]
[1730157032560,32.40183704,179.24,179.19,16.79423704]
[1730157033051,15.6076,179.24,179.22,16.79423704]
[1730157033958,6.4823,179.25,179.23,16.79423704]
[1730157034332,6.4823,179.25,179.22,16.79423704]
[1730157034659,23.27653704,179.25,179.2,16.79423704]
[1730157034954,16.79423704,179.23,179.18,16.79423704]
[1730157035347,16.79423704,179.23,179.12,11.5772]
[1730157035348,23.776884,179.22,179.17,16.79423704]
[1730157035645,23.776884,179.22,179.18,1.69465032]
[1730157035836,23.776884,179.22,179.18,16.79423704]
[1730157037054,23.776884,179.23,179.19,16.79423704]
[1730157037741,23.776884,179.24,179.2,16.79423704]
[1730157038257,23.776884,179.24,179.22,16.79423704]
[1730157038451,6.4823,179.25,179.22,16.79423704]
[1730157041964,22.5029,179.44,179.26,26.3615]
[1730157042141,27.8566,179.5,179.26,26.3615]
[1730157042142,16.79423704,179.5,179.43,16.79423704]
[1730157042464,0.1,179.51,179.38,20.0]
[1730157042635,75.91148247,179.52,179.38,20.0]
[1730157042836,16.79423704,179.47,179.4,16.79423704]
[1730157043056,16.79423704,179.45,179.38,16.79423704]
[1730157043237,16.79423704,179.44,179.38,16.79423704]
[1730157043437,3.34,179.49,179.4,16.79423704]
[1730157043438,16.79423704,179.46,179.4,16.79423704]
[1730157043937,16.79423704,179.45,179.38,16.79423704]
[1730157044135,16.79423704,179.43,179.37,16.79423704]
[1730157044334,8.8115,179.49,179.29,3.61733603]
[1730157044335,16.79423704,179.41,179.35,16.79423704]
[1730157044541,26.88123953,179.41,179.35,20.0]
[1730157045038,26.88123953,179.4,179.35,20.0]
[1730157045561,26.88123953,179.4,179.34,26.88123953]
[1730157045962,26.88123953,179.4,179.35,20.0]
[1730157046339,26.88123953,179.4,179.34,26.88123953]
[1730157048469,26.88123953,179.41,179.35,26.88123953]
[1730157049463,5.5729,179.44,179.38,26.88123953]
[1730157049464,26.88123953,179.44,179.38,26.88123953]
[1730157049762,26.88123953,179.43,179.37,26.88123953]
[1730157050154,26.88123953,179.43,179.38,26.88123953]
[1730157050467,26.88123953,179.39,179.34,26.88123953]
[1730157050770,26.88123953,179.38,179.33,20.0]
[1730157051137,23.776884,179.45,179.37,26.88123953]
[1730157051374,50.65812353,179.45,179.39,26.88123953]
[1730157051556,50.65812353,179.43,179.38,26.88123953]
[1730157051748,26.88123953,179.44,179.38,26.88123953]
[1730157052143,26.88123953,179.43,179.38,26.88123953]
[1730157052366,26.88123953,179.41,179.37,20.0]
[1730157052567,26.88123953,179.41,179.36,26.88123953]
[1730157052772,26.88123953,179.4,179.35,46.88123953]
[1730157053269,50.65812353,179.39,179.34,26.88123953]
[1730157053450,23.776884,179.39,179.35,26.88123953]
[1730157053661,50.65812353,179.39,179.34,26.88123953]
[1730157054379,26.88123953,179.38,179.33,26.88123953]
[1730157054872,23.776884,179.39,179.34,26.88123953]
[1730157055169,50.65812353,179.39,179.34,26.88123953]
[1730157055657,50.65812353,179.39,179.33,26.88123953]
[1730157056171,26.88123953,179.36,179.31,26.88123953]
[1730157056390,26.88123953,179.36,179.31,20.0]
[1730157056557,26.88123953,179.36,179.31,46.88123953]
[1730157056943,26.88123953,179.38,179.32,26.88123953]
[1730157057161,23.776884,179.37,179.33,26.88123953]
[1730157058765,23.776884,179.37,179.32,26.88123953]
[1730157059247,26.88123953,179.36,179.31,26.88123953]
[1730157059958,26.88123953,179.39,179.34,26.88123953]
[1730157060143,26.88123953,179.4,179.34,26.88123953]
[1730157060347,50.65812353,179.39,179.33,26.88123953]
[1730157061467,26.88123953,179.37,179.32,26.88123953]
[1730157061679,26.88123953,179.35,179.31,20.0]
[1730157062259,26.88123953,179.36,179.31,46.88123953]
[1730157063467,26.88123953,179.36,179.3,26.88123953]
[1730157064081,26.88123953,179.36,179.28,26.88123953]
[1730157064082,50.65812353,179.33,179.28,26.88123953]
[1730157064253,26.88123953,179.29,179.24,26.88123953]
[1730157064457,26.88123953,179.25,179.19,26.88123953]
[1730157064783,26.88123953,179.25,179.16,3.60163303]
[1730157064784,26.88123953,179.21,179.16,3.60163303]
[1730157064962,26.88123953,179.21,179.12,6.3615]
[1730157065168,26.88123953,179.23,179.17,26.88123953]
[1730157065481,26.88123953,179.23,179.18,26.88123953]
[1730157065860,50.65812353,179.24,179.19,26.88123953]
[1730157066061,33.06733953,179.26,179.21,26.88123953]
[1730157066464,23.01373213,179.26,179.21,16.82763213]
[1730157067479,6.1861,179.26,179.22,16.82763213]
[1730157068578,16.82763213,179.23,179.18,16.82763213]
[1730157069170,23.776884,179.25,179.22,16.82763213]
[1730157069369,40.60451613,179.25,179.19,16.82763213]
[1730157069763,23.776884,179.23,179.19,16.82763213]
[1730157070169,6.1861,179.26,179.21,16.82763213]
[1730157070374,6.1861,179.26,179.23,16.82763213]
[1730157071266,6.1861,179.26,179.22,16.82763213]
[1730157071590,23.776884,179.27,179.24,16.82763213]
[1730157071980,23.776884,179.27,179.25,16.82763213]
[1730157072380,15.5664,179.28,179.25,16.82763213]
[1730157076399,15.5664,179.28,179.26,16.82763213]
[1730157077289,15.5664,179.28,179.25,16.82763213]
[1730157077965,15.5664,179.28,179.26,16.82763213]
[1730157079498,15.5664,179.28,179.2,20.0]
[1730157079499,6.1284,179.31,179.27,16.82763213]
[1730157079682,6.3302,179.35,179.3,16.82763213]
[1730157079992,6.3302,179.35,179.33,16.82763213]
[1730157080195,6.3302,179.35,179.32,16.82763213]
[1730157080682,6.3302,179.35,179.31,16.82763213]
[1730157081271,40.60451613,179.34,179.29,16.82763213]
[1730157081591,40.60451613,179.34,179.26,16.82763213]
[1730157081592,16.82763213,179.32,179.26,16.82763213]
[1730157082170,16.82763213,179.31,179.25,16.82763213]
[1730157082476,16.82763213,179.31,179.26,16.82763213]
[1730157083210,16.82763213,179.32,179.27,16.82763213]
[1730157083515,23.776884,179.31,179.27,16.82763213]
[1730157085010,29.353784,179.31,179.27,16.82763213]
[1730157085905,16.82763213,179.34,179.28,16.82763213]
[1730157086105,46.18051613,179.34,179.28,16.82763213]
[1730157086615,22.40363213,179.34,179.28,16.82763213]
[1730157087015,6.3302,179.35,179.3,16.82763213]
[1730157087016,11.906,179.35,179.3,16.82763213]
[1730157087308,11.906,179.35,179.2,20.2]
[1730157087309,11.906,179.35,179.31,16.82763213]
[1730157088109,11.906,179.35,179.3,16.82763213]
[1730157088317,28.73363213,179.35,179.3,16.82763213]
[1730157088489,16.82763213,179.34,179.29,16.82763213]
[1730157089391,28.73363213,179.35,179.3,16.82763213]
[1730157091691,11.906,179.35,179.31,16.82763213]
[1730157093524,28.73363213,179.35,179.3,16.82763213]
[1730157095112,16.82763213,179.34,179.29,16.82763213]
[1730157095303,16.82763213,179.31,179.26,16.82763213]
[1730157095893,23.776884,179.33,179.2,3.61184171]
[1730157095894,16.82763213,179.32,179.27,16.82763213]
[1730157096715,22.40433213,179.32,179.27,16.82763213]
[1730157097017,6.3302,179.35,179.31,16.82763213]
[1730157097207,6.3302,179.35,179.28,16.82763213]
[1730157097208,6.3302,179.35,179.32,16.82763213]
[1730157098015,6.3302,179.35,179.31,16.82763213]
[1730157098523,28.73353213,179.35,179.3,16.82763213]
[1730157098725,28.73353213,179.35,179.22,3.61720152]
[1730157098726,16.82763213,179.34,179.29,16.82763213]
[1730157098931,16.82763213,179.32,179.27,16.82763213]
[1730157099415,16.82763213,179.3,179.25,16.82763213]
[1730157099995,40.60451613,179.33,179.28,16.82763213]
[1730157100405,46.18091613,179.33,179.28,16.82763213]
[1730157103603,29.353284,179.33,179.28,16.82763213]
[1730157103805,29.353284,179.33,179.29,16.82763213]
[1730157104113,16.82763213,179.31,179.26,16.82763213]
[1730157104305,16.82763213,179.32,179.27,16.82763213]
[1730157104505,23.776884,179.31,179.27,16.82763213]
[1730157104928,5.576,179.34,179.29,16.82763213]
[1730157105109,23.776884,179.34,179.3,16.82763213]
[1730157105325,23.776884,179.34,179.29,16.82763213]
[1730157105942,23.776884,179.34,179.3,16.82763213]
[1730157107743,29.352884,179.34,179.3,16.82763213]
[1730157108042,46.18051613,179.34,179.29,16.82763213]
[1730157108343,23.776884,179.34,179.3,16.82763213]
[1730157108544,46.18051613,179.34,179.29,16.82763213]
[1730157108739,16.82763213,179.32,179.27,16.82763213]
[1730157108942,16.82763213,179.31,179.26,16.82763213]
[1730157109250,16.82763213,179.29,179.24,16.82763213]
[1730157111541,22.40483213,179.3,179.25,16.82763213]
[1730157112248,5.5772,179.3,179.26,16.82763213]
[1730157112445,29.58031954,179.34,179.3,20.0]
[1730157112446,5.80343554,179.34,179.3,20.0]
[1730157112646,0.610765,179.53,179.36,11.5772]
[1730157112852,0.610765,179.53,179.52,16.82763213]
[1730157113040,0.610765,179.53,179.4,20.0]
[1730157113244,6.180865,179.53,179.4,20.0]
[1730157113427,16.82763213,179.49,179.42,16.82763213]
[1730157114029,16.82763213,179.5,179.43,16.82763213]
[1730157114232,16.82763213,179.52,179.45,36.82763213]
[1730157114429,26.85534793,179.49,179.42,26.85534793]
[1730157114752,26.85534793,179.49,179.43,20.0]
[1730157115242,26.85534793,179.46,179.39,26.85534793]
[1730157115431,26.85534793,179.46,179.4,20.0]
[1730157115628,26.85534793,179.45,179.39,46.85534793]
[1730157115823,26.85534793,179.45,179.39,26.85534793]
[1730157116049,26.85534793,179.45,179.4,20.0]
[1730157117148,26.85534793,179.44,179.38,26.85534793]
[1730157117351,26.85534793,179.39,179.36,3.61473265]
[1730157117555,26.85534793,179.37,179.33,0.96820406]
[1730157117739,26.85534793,179.36,179.33,0.96820406]
[1730157118260,26.85534793,179.35,179.33,0.96820406]
[1730157118632,26.85534793,179.34,179.28,26.85534793]
[1730157118837,26.85534793,179.33,179.27,30.46822217]
[1730157119153,26.85534793,179.32,179.27,3.61287424]
[1730157119369,26.85534793,179.32,179.26,26.85534793]
[1730157119845,26.85534793,179.34,179.28,26.85534793]
[1730157120159,26.85534793,179.33,179.28,26.85534793]
[1730157120337,26.85534793,179.34,179.28,26.85534793]
[1730157120667,26.85534793,179.34,179.22,3.61287424]
[1730157120668,26.85534793,179.34,179.29,26.85534793]
[1730157120971,26.85534793,179.35,179.29,26.85534793]
[1730157121140,26.85534793,179.34,179.28,26.85534793]
[1730157121332,26.85534793,179.35,179.3,26.85534793]
[1730157121528,26.85534793,179.35,179.29,26.85534793]
[1730157121752,26.85534793,179.34,179.28,26.85534793]
[1730157121932,5.5747,179.39,179.27,26.85534793]
[1730157122142,26.85534793,179.31,179.27,20.0]
[1730157122533,26.85534793,179.31,179.25,26.85534793]
[1730157122734,26.85534793,179.32,179.26,26.85534793]
[1730157123066,26.85534793,179.37,179.26,26.85534793]
[1730157123067,26.85534793,179.31,179.26,26.85534793]
[1730157123262,26.85534793,179.32,179.26,26.85534793]
[1730157123740,26.85534793,179.33,179.27,26.85534793]
[1730157123936,26.85534793,179.34,179.28,26.85534793]
[1730157124157,26.85534793,179.35,179.3,26.85534793]
[1730157124358,26.85534793,179.4,179.34,26.85534793]
[1730157124541,11.47533251,179.42,179.34,26.85534793]
[1730157124858,26.85534793,179.38,179.33,26.85534793]
[1730157125037,26.85534793,179.39,179.33,26.85534793]
[1730157125242,26.85534793,179.39,179.34,26.85534793]
[1730157125435,26.85534793,179.39,179.33,26.85534793]
[1730157125643,26.85534793,179.38,179.33,26.85534793]
[1730157125860,26.85534793,179.35,179.29,26.85534793]
[1730157126359,26.85534793,179.34,179.29,26.85534793]
[1730157126562,26.85534793,179.35,179.29,26.85534793]
[1730157126861,26.85534793,179.34,179.29,26.85534793]
[1730157127646,26.85534793,179.37,179.32,26.85534793]
[1730157127957,23.776884,179.36,179.32,26.85534793]
[1730157128440,26.85534793,179.4,179.35,26.85534793]
[1730157129245,26.85534793,179.39,179.34,26.85534793]
[1730157129448,26.85534793,179.37,179.32,26.85534793]
[1730157129649,11.37563251,179.42,179.23,3.61264587]
[1730157129650,26.85534793,179.36,179.31,26.85534793]
[1730157130456,26.85534793,179.38,179.33,26.85534793]
[1730157131163,23.776884,179.38,179.34,26.85534793]
[1730157131654,50.63223193,179.38,179.33,26.85534793]
[1730157132244,26.85534793,179.37,179.32,26.85534793]
[1730157132445,50.63223193,179.38,179.33,26.85534793]
[1730157132953,26.85534793,179.37,179.32,26.85534793]
[1730157133347,50.63223193,179.38,179.33,26.85534793]
[1730157133750,26.85534793,179.37,179.32,26.85534793]
[1730157134167,50.63223193,179.38,179.32,26.85534793]
[1730157134552,50.63223193,179.38,179.32,16.80735859]
[1730157134553,40.58424259,179.38,179.32,16.80735859]
[1730157134860,16.80735859,179.37,179.32,16.80735859]
[1730157135163,23.776884,179.38,179.31,16.80735859]
[1730157135164,16.80735859,179.36,179.31,16.80735859]
[1730157135366,23.776884,179.36,179.32,16.80735859]
[1730157136667,23.776884,179.38,179.35,16.80735859]
[1730157136856,16.80735859,179.42,179.37,16.80735859]
[1730157137063,5.5735,179.42,179.38,16.80735859]
[1730157137361,22.38085859,179.42,179.37,16.80735859]
[1730157137950,16.80735859,179.41,179.36,16.80735859]
[1730157138164,16.80735859,179.38,179.24,0.2]
[1730157138366,16.80735859,179.38,179.33,16.80735859]
[1730157138560,23.776884,179.39,179.34,16.80735859]
[1730157139166,23.776884,179.39,179.28,16.80735859]
[1730157139167,23.776884,179.39,179.35,16.80735859]
[1730157142172,46.15884259,179.39,179.34,16.80735859]
[1730157142471,29.351484,179.39,179.34,16.80735859]
[1730157143665,29.351484,179.39,179.35,16.80735859]
[1730157144595,16.80735859,179.42,179.29,20.0]
[1730157144895,12.03724534,179.43,179.41,16.80735859]
[1730157145062,15.5122,179.46,179.42,16.80735859]
[1730157145254,15.5122,179.46,179.43,16.80735859]
[1730157145668,21.0846,179.46,179.42,16.80735859]
[1730157146974,23.776884,179.45,179.42,16.80735859]
[1730157147875,23.776884,179.45,179.37,16.80735859]
[1730157147876,21.0846,179.46,179.43,16.80735859]
[1730157150168,21.0846,179.46,179.42,16.80735859]
[1730157150877,21.0846,179.46,179.43,16.80735859]
[1730157153275,21.0846,179.46,179.42,16.80735859]
[1730157154778,21.0846,179.46,179.43,16.80735859]
[1730157155485,21.0846,179.46,179.37,16.80735859]
[1730157155486,32.06635859,179.51,179.45,16.80735859]
[1730157155786,5.571,179.5,179.46,16.80735859]
[1730157156372,32.06635859,179.51,179.47,16.80735859]
[1730157156569,15.259,179.51,179.49,16.80735859]
[1730157156776,20.8297,179.51,179.48,16.80735859]
[1730157156978,20.8297,179.51,179.47,16.80735859]
[1730157158179,40.58424259,179.5,179.45,16.80735859]
[1730157158690,23.776884,179.5,179.46,16.80735859]
[1730157159687,29.347984,179.5,179.46,16.80735859]
[1730157162498,46.15534259,179.5,179.46,16.80735859]
[1730157163077,46.15534259,179.5,179.45,16.80735859]
[1730157163276,29.347984,179.5,179.46,16.80735859]
[1730157165106,15.259,179.51,179.47,16.80735859]
[1730157165266,6.40799808,179.53,179.5,16.80735859]
[1730157165469,0.610765,179.53,179.5,16.80735859]
[1730157165792,0.610765,179.53,179.4,0.2]
[1730157165793,0.610765,179.53,179.52,16.80735859]
[1730157167569,0.610765,179.53,179.51,16.80735859]
[1730157167892,0.610765,179.53,179.48,16.80735859]
[1730157168193,17.41812359,179.53,179.47,16.80735859]
[1730157168573,17.41812359,179.53,179.48,16.80735859]
[1730157168897,22.98822359,179.53,179.48,16.80735859]
[1730157169983,0.610765,179.53,179.5,16.80735859]
[1730157170584,0.610765,179.53,179.49,16.80735859]
[1730157171389,17.41812359,179.53,179.48,16.80735859]
[1730157171590,16.80735859,179.52,179.47,16.80735859]
[1730157171982,22.98822359,179.53,179.48,16.80735859]
[1730157173595,16.80735859,179.5,179.45,16.80735859]
[1730157173800,16.80735859,179.49,179.44,16.80735859]
[1730157173970,16.80735859,179.48,179.42,16.80735859]
[1730157174170,16.80735859,179.48,179.43,16.80735859]
[1730157174602,21.847365,179.53,179.46,16.80735859]
[1730157174807,16.80735859,179.51,179.46,16.80735859]
[1730157175373,16.80735859,179.5,179.45,16.80735859]
[1730157176073,16.80735859,179.49,179.44,16.80735859]
[1730157176292,16.80735859,179.5,179.44,16.80735859]
[1730157176893,16.80735859,179.49,179.44,16.80735859]
[1730157177095,16.80735859,179.5,179.45,16.80735859]
[1730157177981,16.80735859,179.49,179.44,16.80735859]
[1730157179587,16.80735859,179.48,179.43,16.80735859]
[1730157179900,16.80735859,179.47,179.42,16.80735859]
[1730157180279,16.80735859,179.47,179.41,16.80735859]
[1730157180280,16.80735859,179.46,179.41,16.80735859]
[1730157180799,22.37935859,179.47,179.42,16.80735859]
[1730157181904,16.80735859,179.46,179.41,16.80735859]
[1730157182703,16.80735859,179.48,179.43,16.80735859]
[1730157183086,16.80735859,179.49,179.43,16.80735859]
[1730157183292,16.80735859,179.48,179.43,16.80735859]
[1730157183798,16.80735859,179.48,179.42,16.80735859]
[1730157183799,16.80735859,179.47,179.42,16.80735859]
[1730157184027,16.80735859,179.46,179.41,16.80735859]
[1730157184213,16.80735859,179.44,179.39,16.80735859]
[1730157186284,22.37985859,179.45,179.4,16.80735859]
[1730157188389,22.37945859,179.47,179.42,16.80735859]
[1730157189808,5.80148309,179.48,179.45,16.80735859]
[1730157189988,16.80735859,179.5,179.44,16.80735859]
[1730157191001,40.58424259,179.49,179.44,16.80735859]
[1730157191312,16.80735859,179.48,179.42,16.80735859]
[1730157191531,5.5707,179.51,179.42,16.80735859]
[1730157191532,16.80735859,179.47,179.42,16.80735859]
[1730157192091,16.80735859,179.46,179.41,16.80735859]
[1730157192294,16.80735859,179.45,179.39,16.80735859]
[1730157192691,16.80735859,179.45,179.4,16.80735859]
[1730157193720,22.38005859,179.45,179.39,16.80735859]